[Event "FIDE WSCC 50 2022"]
[Site "Assisi"]
[Date "2022.11.24"]
[Round "9.7"]
[White "Arakhamia-Grant, Ketevan"]
[Black "Novik, Maxim"]
[Result "0-1"]
[ECO "B42"]
[WhiteElo "2327"]
[BlackElo "2412"]
[Annotator "TA"]
[PlyCount "62"]
[EventDate "2022.11.14"]
[EventType "swiss"]
[EventCountry "ITA"]
[SourceTitle "playchess.com"]
[Source "ChessBase"]
[SourceQuality "1"]
[TimeControl "40/5400+30:1800+30"]

{[%evp 19,62,20,16,-7,0,0,0,0,22,-16,-10,-16,-7,-61,-57,-35,-38,-55,-22,-37,0,-10,-8,-24,0,-84,-105,-80,-81,-97,-88,-77,-25,-94,-90,-204,-206,-541,-541,-541,-541,-540,-530,-485,-462]} 1. e4 {[%emt 0:02:52]} c5 {[%emt 0:00:06]} 2. Nf3 {[%emt 0:00:11]} e6 {[%emt 0:00:05]} 3. d4 {[%emt 0:01:08]} cxd4 {[%emt 0:00:05]} 4. Nxd4 {[%emt 0:00:03]} a6 {[%emt 0:00:03]} 5. Bd3 {[%emt 0:00:39]} Bc5 {[%emt 0:00:34]} 6. Nb3 {[%emt 0:00:11]} Ba7 {[%emt 0:00:06]} 7. Nc3 {[%emt 0:01:05]} Nc6 {[%emt 0:00:13]} 8. Qe2 {[%emt 0:01:59]} d6 {[%emt 0:00:25]} 9. Be3 {[%emt 0:02:37]} b5 {[%emt 0:00:45][%cal Bb7b5,Bb5b4][%mdl 32]} 10. O-O {[%emt 0:01:40]} Nf6 {[%emt 0:01:22]} 11. f4 {[%emt 0:05:23] B42: Sicilian: Kan Variation: 5 Bd3.} Bxe3+ {[%emt 0:09:42]} 12. Qxe3 {[%emt 0:00:09]} b4 {[%emt 0:02:36] Against e5} 13. Na4 {[%emt 0:07:24] [#] The position is equal.} e5 $146 {[%emt 0:08:15]} ({Predecessor:} 13... O-O 14. e5 Nd5 15. Qe4 g6 16. Nd2 a5 17. Nc4 dxe5 18. fxe5 Ba6 19. Rad1 Bb5 {0-1 (39) Abrahamyan,T (2201)-Yudasin,L (2558) Los Angeles 2003}) 14. h3 {[%emt 0:13:40]} ({But not} 14. Nb6 $2 Ng4 15. Qg3 Qxb6+ $19) 14... Rb8 {[%emt 0:02:56] Against Nb6} 15. a3 {[%emt 0:08:26]} O-O {[%emt 0:13:17]} 16. f5 {[%emt 0:01:44]} (16. axb4 $11 Rxb4 17. f5) 16... Bd7 {[%emt 0:07:49][%cal Bc8d7,Bd7c6,Bc6a8][%mdl 32]} 17. axb4 {[%emt 0:16:33]} Nxb4 {[%emt 0:01:33]} 18. Nc3 {[%emt 0:06:12]} Bc6 {[%emt 0:15:11]} 19. Na5 {[%emt 0:04:30]} Ba8 {[%emt 0:00:25]} 20. Nc4 {[%emt 0:05:54]} Re8 {[%emt 0:01:56] Threatens to win with ...d5.} 21. Qg3 {[%emt 0:01:42]} Qc7 {[%emt 0:02:17][%cal Ob4c2]} (21... Nh5 $5 {[%cal Rh5g3]} 22. Qg4 Nf6 $11) 22. Ne3 {[%emt 0:03:34]} (22. b3 $11) 22... Nxd3 $17 {[%emt 0:01:45]} 23. cxd3 {[%emt 0:00:06]} Rxb2 {[%emt 0:00:08]} 24. Rfc1 {[%emt 0:00:14] [#] Hoping for Ncd1.} Qa7 $1 {[%emt 0:00:42]} 25. Kh2 {[%emt 0:00:11]} Qd4 {[%emt 0:04:36]} ({Black should try} 25... Nh5 $17 26. Qf3 Nf4) 26. Nc4 {[%emt 0:12:37]} (26. Qe1 $11 {remains equal.}) 26... Rb3 {[%emt 0:01:29][%cal Bb2b3,Bb3c3,Bc3d3,Bd3g3,Bg3e3][%mdl 32] Black is more active.} 27. Rxa6 {[%emt 0:00:37]} (27. Ne2 $17 Qxd3 28. Nxd6) 27... Rxc3 $19 {[%emt 0:01:14]} 28. Rxd6 $2 {[%emt 0:00:26] [#]} (28. Rxc3 {nothing else works.} Qxc3 29. Nxd6) 28... Qxc4 $1 {[%emt 0:03:25] Black is clearly winning.} 29. Rxf6 {[%emt 0:02:00]} Rxd3 {[%emt 0:01:06]} 30. Rxc4 {[%emt 0:01:04]} Rxg3 {[%emt 0:00:01]} 31. Ra6 {[%emt 0:00:30]} Re3 {[%emt 0:00:18] Weighted Error Value: White=0.44/Black=0.11 (very precise)} 0-1

[Event "FIDE WSCC 50 2022"]
[Site "Assisi"]
[Date "2022.11.24"]
[Round "9.8"]
[White "Young, Angelo"]
[Black "Antonio, Rogelio Jr"]
[Result "1/2-1/2"]
[ECO "D13"]
[WhiteElo "2309"]
[BlackElo "2397"]
[Annotator "TA"]
[PlyCount "25"]
[EventDate "2022.11.14"]
[EventType "swiss"]
[EventCountry "ITA"]
[SourceTitle "playchess.com"]
[Source "ChessBase"]
[SourceQuality "1"]
[TimeControl "40/5400+30:1800+30"]

{[%evp 14,22,18,0,0,0,0,0,7,11,7]} 1. d4 {[%emt 0:00:30]} d5 {[%emt 0:00:08]} 2. c4 {[%emt 0:00:00]} c6 {[%emt 0:00:03]} 3. cxd5 {[%emt 0:00:00]} cxd5 {[%emt 0:00:09]} 4. Nc3 {[%emt 0:00:00]} Nc6 {[%emt 0:00:09]} 5. Nf3 {[%emt 0:00:00]} Nf6 {[%emt 0:00:11]} 6. Bf4 {[%emt 0:00:07]} a6 {[%emt 0:00:36]} 7. e3 {[%emt 0:00:10] 7.Rc1 is the hot move.} Bf5 {[%emt 0:00:07]} 8. Bd3 {[%emt 0:00:10] The position is equal.} Bxd3 {[%emt 0:00:05] D13: Slav Defence: Exchange variation without ...Bf5.} 9. Qxd3 {[%emt 0:00:06]} e6 {[%emt 0:00:06]} 10. Rc1 {[%emt 0:00:16]} Bd6 {[%emt 0:00:08]} 11. Bxd6 {[%emt 0:00:07]} Qxd6 {[%emt 0:00:07] [#] Not much happened in this game.   Weighted Error Value: White=0.06 (flawless) /Black=0.02 (flawless)} {Predecessor:} 12. O-O $146 O-O 13. a3 {½-½ (13) Bruzon Batista,L (2673)-Ortiz Suarez,I (2551) Aguascalientes 2018} 1/2-1/2

[Event "FIDE WSCC 50 2022"]
[Site "Assisi"]
[Date "2022.11.24"]
[Round "9.9"]
[White "Krizsany, Laszlo"]
[Black "Mantovani, Renzo"]
[Result "1/2-1/2"]
[ECO "D59"]
[WhiteElo "2371"]
[BlackElo "2246"]
[Annotator "TA"]
[PlyCount "59"]
[EventDate "2022.11.14"]
[EventType "swiss"]
[EventCountry "ITA"]
[SourceTitle "playchess.com"]
[Source "ChessBase"]
[SourceQuality "1"]
[TimeControl "40/5400+30:1800+30"]

{[%evp 25,59,10,8,-4,-4,-8,-10,-36,-30,-33,-21,-24,0,0,-8,-17,-18,-56,-56,-56,-56,-45,-45,-64,-33,-74,-62,-60,-11,-14,-13,-20,-7,-16,-14,-14]} 1. d4 {[%emt 0:00:06]} Nf6 {[%emt 0:00:09]} 2. c4 {[%emt 0:00:14]} e6 {[%emt 0:00:08]} 3. Nf3 {[%emt 0:00:18]} d5 {[%emt 0:00:36]} 4. Nc3 {[%emt 0:00:41]} Be7 {[%emt 0:00:29]} 5. Bg5 {[%emt 0:00:33]} O-O {[%emt 0:01:17]} 6. e3 {[%emt 0:00:40]} h6 {[%emt 0:00:23]} 7. Bh4 {[%emt 0:00:16]} b6 {[%emt 0:00:47]} 8. cxd5 {[%emt 0:01:26]} Nxd5 {[%emt 0:00:50]} 9. Bxe7 {[%emt 0:00:28]} Qxe7 {[%emt 0:00:13]} 10. Nxd5 {[%emt 0:00:30]} exd5 {[%emt 0:00:08]} 11. Rc1 {[%emt 0:00:26]} Be6 {[%emt 0:00:26]} 12. Qa4 {[%emt 0:02:46]} c5 {[%emt 0:01:17]} 13. Qa3 {[%emt 0:01:16]} Rc8 {[%emt 0:00:29]} 14. b3 {[%emt 0:06:43] [#] D59: Queen's Gambit Declined: Tartakower Defence: Main line (8 cxd5 Nxd5).} a5 $146 {[%emt 0:14:15]} ({Predecessor:} 14... a6 15. Be2 Nd7 16. O-O Qf8 17. Rfd1 Nf6 18. Qb2 Qe7 19. Ne5 Qa7 20. Bf3 Rc7 21. Nd3 Rd8 {½-½ (75) Reisel,F (2076)-Gunis,J (2061) Slovakia 2007}) 15. Bb5 {[%emt 0:05:11]} Nc6 {[%emt 0:05:09]} 16. Bxc6 {[%emt 0:09:40]} Rxc6 {[%emt 0:00:21]} 17. dxc5 {[%emt 0:04:09]} bxc5 {[%emt 0:04:45][%cal Od5d4]} 18. O-O {[%emt 0:01:10]} Qc7 {[%emt 0:09:45]} 19. Qa4 {[%emt 0:08:17]} Rc8 {[%emt 0:02:34]} 20. Rc3 {[%emt 0:04:28]} Qb6 {[%emt 0:04:34]} (20... Qb7 $5 {[%cal Rb7b4]}) 21. a3 {[%emt 0:11:24] Inhibits Qb4.} R6c7 {[%emt 0:04:08][%cal Od5d4,Bc6c7,Bc7a7,Ba7a4][%mdl 32] [#] ...d4! is the strong threat.} (21... Rd6 {simplifies} 22. Qf4 Rcd8 23. b4 cxb4 24. axb4 Qxb4 25. Qxb4 axb4 26. Rb3 Rb6) 22. Qf4 {[%emt 0:04:17] Prevents d4.} a4 {[%emt 0:06:02]} 23. bxa4 {[%emt 0:03:19]} Ra7 {[%emt 0:08:53]} 24. Rfc1 {[%emt 0:03:38]} c4 {[%emt 0:02:39]} (24... Ra5 $5) 25. Nd4 {[%emt 0:03:11]} Rxa4 {[%emt 0:00:31]} 26. Qe5 {[%emt 0:00:59]} Qc7 {[%emt 0:04:02] Prevents e4.} (26... Re8 $15 {might be stronger.}) 27. Qxc7 $11 {[%emt 0:02:14] The position is equal.} Rxc7 {[%emt 0:00:07]} 28. e4 {[%emt 0:00:21]} Rca7 {[%emt 0:05:39]} 29. exd5 {[%emt 0:07:07]} Bxd5 {[%emt 0:00:15]} 30. Nc2 {[%emt 0:00:17] Weighted Error Value: White=0.08 (flawless) /Black=0.09 (flawless)} 1/2-1/2

[Event "FIDE WSCC 50 2022"]
[Site "Assisi"]
[Date "2022.11.24"]
[Round "9.10"]
[White "Prie, Eric"]
[Black "Tereladze, Sopio"]
[Result "0-1"]
[ECO "D02"]
[WhiteElo "2356"]
[BlackElo "2154"]
[Annotator "TA"]
[PlyCount "116"]
[EventDate "2022.11.14"]
[EventType "swiss"]
[EventCountry "ITA"]
[SourceTitle "playchess.com"]
[Source "ChessBase"]
[SourceQuality "1"]
[TimeControl "40/5400+30:1800+30"]

{[%evp 17,116,18,41,44,36,35,51,45,49,49,68,69,89,58,62,73,67,30,29,0,16,0,51,7,22,0,26,0,40,29,46,19,40,35,41,42,44,42,58,41,57,55,115,59,54,15,23,0,0,0,0,0,0,-114,0,0,0,0,0,0,0,0,0,0,0,0,0,-219,-184,-230,-234,-4910,-4922,-6179,-6179,-29973,-832,-824,-818,-810,-809,-1393,-1393,-1302,-1310,-793,-724,-29982,-29983,-29983,-29984,-29984,-29985,-29985,-29981,-29981,-29982,-29982,-29983,-29983,-29984]} 1. d4 {[%emt 0:00:04]} Nf6 {[%emt 0:00:16]} 2. Bf4 {[%emt 0:00:10]} e6 {[%emt 0:00:32]} 3. e3 {[%emt 0:00:09]} d5 {[%emt 0:00:08]} 4. Nd2 {[%emt 0:00:13]} Bd6 {[%emt 0:00:22]} 5. Bg3 {[%emt 0:00:12]} Qe7 {[%emt 0:05:01]} 6. Ngf3 {[%emt 0:00:50]} c5 {[%emt 0:00:16]} 7. c3 {[%emt 0:00:42]} Nc6 {[%emt 0:00:30]} 8. Ne5 {[%emt 1:32:10]} O-O {[%emt 0:25:46]} 9. Bd3 {[%emt 0:00:00]} Bxe5 {[%emt 0:02:39]} (9... Qc7 {with more complications.} 10. f4 b6 11. Bh4 Be7) 10. dxe5 {[%emt 0:00:00] D02: 1 d4 d5 2 Nf3 sidelines, including 2...Nf6 3 g3 and 2...Nf6 3 Bf4.} Nd7 {[%emt 0:00:00][%cal Bf6d7,Bd7c5,Bc5e4][%mdl 32]} 11. f4 {[%emt 0:00:00] 11.f4 scores better than 11.Nf3.} (11. Qh5 g6 12. Qe2 Ndxe5 $17) 11... f5 {[%emt 0:02:26] Inhibits e4.} 12. Nf3 {[%emt 0:00:00] White is slightly better.} c4 {[%emt 0:04:16]} 13. Bc2 {[%emt 0:00:00]} b5 {[%emt 0:00:34]} 14. Bh4 {[%emt 0:00:00]} Qe8 {[%emt 0:11:20] [#]} 15. h3 $146 {[%emt 0:00:00]} ({Predecessor:} 15. g4 fxg4 16. Ng5 h6 17. Qxg4 Ndxe5 18. fxe5 Nxe5 19. Qg3 Qh5 20. Bd1 Nd3+ 21. Kd2 {1-0 (32) Alvarez Fernandez,E (2366)-Trepat Herranz,J (2305) San Sebastian 2010}) 15... Nc5 {[%emt 0:04:44]} 16. g4 {[%emt 0:00:00] aiming for gxf5.} Ne4 {[%emt 0:05:38]} 17. gxf5 {[%emt 0:00:00]} exf5 {[%emt 0:00:28]} 18. O-O {[%emt 0:00:00][%cal Bh1f1,Bf1g1,Bg1g2][%mdl 32]} (18. Bxe4 {simplifies} dxe4 19. Nd4 Rb8 20. Nxc6 Qxc6 21. Be7) 18... Be6 {[%emt 0:01:02]} 19. Kh2 {[%emt 0:00:00]} Qh5 {[%emt 0:05:38]} (19... h6 $11) 20. Qe1 {[%emt 0:00:00][%cal Of1g1]} (20. Rg1 {feels hotter.} Rae8 21. Rg2 Kh8 22. Be1) 20... Rab8 {[%emt 0:01:18]} 21. Bd1 {[%emt 0:00:00]} (21. Ng5 $5 {[%cal Rg5e6]} Bc8 22. Rg1 $11) 21... Qf7 {[%emt 0:00:22]} 22. Rg1 {[%emt 0:00:00]} (22. Ng5 $5 {[%cal Rg5f7]} Qd7 23. a3 $11) 22... Rb6 {[%emt 0:01:48]} 23. a3 {[%emt 0:00:00]} a5 {[%emt 0:00:13]} 24. Rg2 {[%emt 0:00:00]} b4 {[%emt 0:00:50]} 25. axb4 axb4 {[%emt 0:00:00]} 26. Ng5 {[%emt 0:00:00]} Nxg5 {[%emt 0:00:25]} 27. Bxg5 {[%emt 0:00:00]} Kh8 {[%emt 0:00:48]} 28. Qh4 {[%emt 0:00:00] Threatens to win with Bh5.} bxc3 {[%emt 0:04:45]} 29. bxc3 {[%emt 0:00:00] Hoping for Bh5.} Qd7 {[%emt 0:05:01]} (29... Rfb8 $14) 30. Ba4 {[%emt 0:00:00]} (30. Bh5 $1 $16) 30... d4 $1 $14 {[%emt 0:03:52]} 31. exd4 {[%emt 0:00:00]} (31. cxd4 Bd5 32. Rf2 Ra8 $11) 31... Bd5 $1 {[%emt 0:00:30]} 32. Rga2 {[%emt 0:00:00]} Rfb8 {[%emt 0:03:48] And now ...Rb2+ would win.} 33. Qf2 {[%emt 0:00:00] Against Rb2} h6 {[%emt 0:01:12]} 34. Bh4 {[%emt 0:00:00]} Qb7 {[%emt 0:00:48]} 35. Qe1 {[%emt 0:00:00]} (35. Qe2 $11) 35... Be4 {[%emt 0:05:43] Black is more active.} (35... Rb2+ $17 36. Bf2 Qf7) 36. Bf2 {[%emt 0:00:00][%cal Od4d5] Black must now prevent d5!} Ne7 {[%emt 0:02:26] ...Rb2 is the strong threat.} 37. Bc2 {[%emt 0:00:00]} Bxc2 {[%emt 0:02:14]} 38. Rxc2 {[%emt 0:00:00]} (38. Ra7 $2 Qf3 $1 39. Qe3 Qxe3 40. Bxe3 Nd5 $19) 38... Nd5 {[%emt 0:00:02]} 39. Be3 {[%emt 0:00:00]} Rb2 {[%emt 0:00:14]} 40. Ra2 {[%emt 0:00:00]} Rb1 {[%emt 0:01:47]} 41. Rc1 {[%emt 0:27:32]} Rb2+ {[%emt 0:02:09]} 42. Rxb2 $2 {[%emt 0:00:00] White is on the road to losing.} (42. Rc2 $1 $11 {and White has nothing to worry.} Rxa2 43. Rxa2) 42... Qxb2+ $19 {[%emt 0:00:03]} 43. Kg1 {[%emt 0:00:00]} (43. Kh1 $142) 43... Rb6 $1 {[%emt 0:03:25][%cal Bb8b6,Bb6g6,Bg6g3][%mdl 32]} 44. Bd2 $2 {[%emt 0:00:00]} (44. e6 Rxe6 45. Qf2) 44... Rg6+ {[%emt 0:01:12]} 45. Kf1 {[%emt 0:00:00] [#]} Nxf4 $1 {[%emt 0:01:46][%cal Ob2b7][%mdl 576]} 46. Qe3 {[%emt 0:00:00] [#]} (46. d5 Nxh3) 46... Nxh3 $1 {[%emt 0:05:42][%mdl 512]} 47. e6 {[%emt 0:00:00]} f4 {[%emt 0:08:09]} 48. Qxh3 {[%emt 0:00:00]} Qxd2 {[%emt 0:00:07][%mdl 4096] Endgame KQR-KQR} 49. Re1 {[%emt 0:00:00]} Rg3 {[%emt 0:01:35]} 50. Qh1 {[%emt 0:00:00]} Qd3+ {[%emt 0:00:45]} (50... Qxc3 51. Qa8+ Kh7 52. Qe4+ g6 53. Qb7+ Kh8 54. Qc8+ Kh7 55. Qd7+ Kh8 56. Qe8+ Kh7 57. Qf7+ Kh8 58. Qf8+ Kh7 59. Qf7+ Kh8 60. Qf8+ Kh7 61. Qf7+ $11) 51. Kf2 {[%emt 0:00:18] [#]} Re3 $1 {[%emt 0:00:55] ( -> ...Qd2+)} (51... Qxc3 52. Qa8+ Kh7 53. Qe4+ g6 54. Qb7+ Kh8 55. Qc8+ Kh7 56. Qd7+ Kh8 57. Qe8+ Kh7 58. Qf7+ Kh8 59. Qf8+ Kh7 60. Qf7+ Kh8 61. Qf8+ Kh7 62. Qf7+ $11) 52. Rxe3 {[%emt 0:13:10]} Qxe3+ {[%emt 0:00:25] KQ-KQ. Black mates.} 53. Kf1 {[%emt 0:00:10]} Qc1+ {[%emt 0:02:28]} ({And not} 53... Qxc3 54. Qa8+ Kh7 55. Qe4+ Kg8 56. e7 (56. Qxf4 $2 {perishes.} Qh3+ 57. Ke2 Qxe6+ 58. Kd1 g5 $19) 56... Qh3+ 57. Kg1 Qg4+ 58. Kh2 Qh5+ 59. Kg2 Qg4+ 60. Kh2 Qh5+ 61. Kg2 Qg4+ 62. Kf2 Qg3+ 63. Kf1 Qh3+ 64. Ke1 Qg3+ 65. Kd1 Qb3+ 66. Ke1 Qg3+ 67. Kf1 Qh3+ $11) 54. Kg2 {[%emt 0:00:08]} f3+ {[%emt 0:00:08]} 55. Kh2 {[%emt 0:00:06]} Qxh1+ {[%emt 0:00:17]} 56. Kxh1 {[%emt 0:00:06]} Kg8 {[%emt 0:00:02]} 57. d5 {[%emt 0:00:46]} Kf8 {[%emt 0:00:01]} 58. Kh2 {[%emt 0:00:18] [#]} g5 $1 {[%emt 0:00:01] Weighted Error Value: White=0.80/Black=0.17 (very precise)} ({Weaker is} 58... Ke7 59. Kg3 $11) 0-1

[Event "FIDE WSCC 50 2022"]
[Site "Assisi"]
[Date "2022.11.24"]
[Round "9.11"]
[White "Albadri Abd Al Sattar"]
[Black "Danielsen, Henrik"]
[Result "0-1"]
[ECO "E33"]
[WhiteElo "2167"]
[BlackElo "2514"]
[Annotator "TA"]
[PlyCount "120"]
[EventDate "2022.11.14"]
[EventType "swiss"]
[EventCountry "ITA"]
[SourceTitle "playchess.com"]
[Source "ChessBase"]
[SourceQuality "1"]
[TimeControl "40/5400+30:1800+30"]

{[%evp 12,120,12,23,39,24,29,30,29,34,29,18,20,19,12,14,13,0,22,13,27,29,37,32,55,26,61,46,85,77,76,71,74,45,27,27,19,22,22,31,21,30,66,54,107,87,89,35,51,0,0,0,0,0,0,0,0,0,0,-5,-5,-5,-6,-6,0,-27,-28,-44,-4,-6,-6,-6,-8,-84,-84,-84,-65,-84,-85,-358,-358,-358,-225,-517,-624,-717,-87,-94,-624,-624,-624,-584,0,0,0,-584,-584,-577,-570,-562,-562,-554,-547,-540,-540,-533,-517,-485,-419,-313,-281]} 1. d4 {[%emt 0:00:37]} Nf6 {[%emt 0:00:13]} 2. c4 {[%emt 0:01:03]} e6 {[%emt 0:00:12]} 3. Nc3 {[%emt 0:00:08]} Bb4 {[%emt 0:00:27]} 4. Qc2 {[%emt 0:00:38]} Nc6 {[%emt 0:19:50]} 5. Nf3 {[%emt 0:00:42]} O-O {[%emt 0:00:54]} 6. a3 {[%emt 0:00:14]} Bxc3+ {[%emt 0:00:21]} 7. Qxc3 {[%emt 0:00:15]} a5 {[%emt 0:00:59] E33: Nimzo-Indian: Classical: 4...Nc6.} 8. Bg5 {[%emt 0:06:33][%cal Od4d5]} h6 {[%emt 0:00:35]} 9. Bh4 {[%emt 0:00:06]} d6 {[%emt 0:00:27] White has an edge.} 10. e3 {[%emt 0:00:35]} Qe7 {[%emt 0:00:55]} 11. Be2 {[%emt 0:10:57][%cal Od4d5]} e5 {[%emt 0:01:58] [#]} 12. dxe5 $146 {[%emt 0:07:21]} ({Predecessor:} 12. O-O Bg4 13. Rfe1 g5 14. Bg3 Ne4 15. Qc2 Nxg3 16. hxg3 e4 17. Nd2 Bxe2 18. Rxe2 {1-0 (43) Boehm,S (2104)-Puetzkaul,K (1820) Leverkusen 2005}) 12... dxe5 {[%emt 0:00:08]} 13. Bxf6 {[%emt 0:00:18]} Qxf6 {[%emt 0:00:17]} 14. O-O {[%emt 0:00:13][%cal Bh1f1,Bf1d1,Bd1d5][%mdl 32]} Qe7 {[%emt 0:09:27]} 15. Rfd1 {[%emt 0:03:03]} Bg4 {[%emt 0:00:58]} 16. h3 {[%emt 0:02:59]} Bh5 {[%emt 0:04:45]} 17. Rd5 {[%emt 0:00:52]} f5 {[%emt 0:09:11]} 18. Rad1 {[%emt 0:07:50][%cal Ba1d1,Bd1d2,Bd2d5][%mdl 32] Black must now prevent Rd7.} Rad8 {[%emt 0:02:25] Inhibits Rd7.} 19. Kf1 {[%emt 0:03:30][%cal Rf3e5]} Bxf3 {[%emt 0:10:36]} 20. Bxf3 {[%emt 0:00:36]} e4 {[%emt 0:00:50]} 21. Be2 {[%emt 0:00:14]} Kh7 {[%emt 0:01:02]} 22. R1d2 {[%emt 0:11:41]} b6 {[%emt 0:12:07]} 23. g3 {[%emt 0:09:25]} Rxd5 {[%emt 0:05:22]} 24. Rxd5 {[%emt 0:00:14]} Qe6 {[%emt 0:00:16] Against c5} 25. Qd2 {[%emt 0:08:07]} Ne5 {[%emt 0:00:40]} 26. Qd4 {[%emt 0:00:47]} Re8 {[%emt 0:01:02]} 27. c5 {[%emt 0:05:29]} Nf3 {[%emt 0:04:31]} ({Black should try} 27... Nc6 $14 28. Qd2 Ne5) 28. Bxf3 $16 {[%emt 0:03:20]} exf3 {[%emt 0:00:01][%mdl 4096] Endgame KQR-KQR} 29. Rd7 {[%emt 0:03:34] Inhibits f4.} ({Better is} 29. Qd3 $16) 29... Qe5 {[%emt 0:03:47]} 30. Kg1 {[%emt 0:10:01]} (30. cxb6 $14 cxb6 31. Ke1 (31. Qxb6 Rb8 $11)) 30... bxc5 $11 {[%emt 0:02:09]} 31. Qxe5 {[%emt 0:00:26]} Rxe5 {[%emt 0:00:03]} 32. Rxc7 {[%emt 0:00:01] KR-KR} Rd5 {[%emt 0:00:19]} 33. g4 {[%emt 0:00:49]} fxg4 {[%emt 0:00:26]} 34. hxg4 {[%emt 0:00:48]} Rg5 {[%emt 0:00:01]} 35. Rf7 {[%emt 0:01:08]} Rxg4+ {[%emt 0:00:14]} 36. Kf1 {[%emt 0:00:00]} Rc4 {[%emt 0:05:52][%cal Rc4c1]} 37. Rxf3 {[%emt 0:00:32]} Kg6 {[%emt 0:00:08]} 38. Kg2 {[%emt 0:01:01]} Rc2 {[%emt 0:00:12]} 39. b3 {[%emt 0:01:51]} c4 {[%emt 0:00:33]} (39... Rc3 $5 {[%cal Rc3b3]}) 40. bxc4 {[%emt 0:00:35]} Rxc4 {[%emt 0:00:02]} 41. Rf8 {[%emt 0:31:38]} Ra4 {[%emt 0:30:11]} 42. Ra8 {[%emt 0:00:38]} (42. f4 $1 $11 {keeps the balance.}) 42... Rxa3 $17 {[%emt 0:00:04]} 43. Kg3 {[%emt 0:00:26]} Ra1 {[%emt 0:00:28]} 44. Ra7 {[%emt 0:00:25]} a4 {[%emt 0:00:39][%cal Ba5a4,Ba4a3,Ba3a2][%mdl 32]} 45. Ra5 $2 {[%emt 0:00:24][%mdl 8192]} (45. e4 $17) 45... a3 $19 {[%emt 0:00:10]} 46. Kg2 {[%emt 0:00:10]} Kf6 {[%emt 0:00:19] ...a2 is the strong threat.} 47. Ra7 $2 {[%emt 0:00:29]} (47. Ra6+ {is a better defense.} Ke5 48. f3) 47... a2 {[%emt 0:00:32]} 48. f3 {[%emt 0:00:00]} h5 $2 {[%emt 0:00:00]} (48... g5 $19 49. Ra4 h5 50. Ra6+ Kf5 51. Ra5+ Kf6 52. Ra6+ Ke7) 49. Ra6+ $17 {[%emt 0:00:00]} Ke5 {[%emt 0:00:00]} 50. Ra5+ {[%emt 0:00:00]} Kd6 $1 {[%emt 0:00:00]} 51. f4 {[%emt 0:00:00][%cal Oe3e4]} g6 $2 {[%emt 0:00:00]} (51... Kc6 $19 52. e4 g6) 52. e4 $11 {[%emt 0:00:00]} Kc6 {[%emt 0:00:00]} 53. e5 $2 {[%emt 0:00:00][%mdl 8192]} (53. Ra7 $11 {and White has nothing to worry.} Kc5 54. Ra8) 53... Kd7 $19 {[%emt 0:00:00]} 54. Ra6 {[%emt 0:00:00]} Ke7 {[%emt 0:00:00] Against Rd6} 55. Kh2 {[%emt 0:00:00]} Rf1 {[%emt 0:00:00]} 56. Rxa2 {[%emt 0:00:00]} Rxf4 {[%emt 0:00:00]} 57. Ra6 {[%emt 0:00:00] [#]} Kf7 {[%emt 0:00:00]} 58. Ra7+ {[%emt 0:00:00]} Kf8 {[%emt 0:00:00]} ({Don't go for} 58... Ke6 $2 59. Ra6+ Kf7 60. Ra7+ Kf8 61. Kg3 $19) 59. Ra8+ {[%emt 0:04:04] [#]} Kg7 $1 {[%emt 0:00:00]} 60. Ra7+ {[%emt 0:00:30]} Kh6 {[%emt 0:00:00] Weighted Error Value: White=0.35/Black=0.31} 0-1